Cogmind - Beta 14 @@@ ROGUE MODE // 2025.01.07 @ 21:20:21 Player: jumpy Result: Self-destructed Performance ------------- Evolutions (1) 500 Regions Visited (3) 600 Robots Destroyed (31) 155 Value Destroyed (477) 477 Prototype IDs (0) 0 Alien Tech Used (0) 0 Bonus (0) 0 TOTAL SCORE: 1732 Bonus ------- None Cogmind --------- Core Integrity 400/400 Matter 300/300 Energy 125/125 System Corruption 0% Temperature Cool (0) Movement Treading (160) Location -9/Materials Parts ------- > --- POWER (1) -------- Light Ion Engine > --- PROPULSION (2) --- Light Treads Light Treads > --- UTILITY (4) ------ Medium Storage Unit Seismic Detector > --- WEAPON (2) ------- Medium Laser (fused) > --- INVENTORY (10) --- Light Treads Light Treads Sensor Array Improved Terrain Scanner Seismic Detector Seismic Detector EM Pulse Gun Peak State ------------ > --- POWER ------------ Ion Engine > --- PROPULSION ------- Light Treads Light Treads > --- UTILITY ---------- Small Storage Unit Seismic Detector > --- WEAPON ----------- Medium Laser Medium Laser > --- INVENTORY -------- Light Ion Engine Light Ion Engine Light Treads Light Treads Improved Terrain Scanner Seismic Detector Seismic Detector EM Pulse Gun [Rating: 8] Favorites ----------- Power Light Ion Engine Engine Light Ion Engine Propulsion Light Treads Treads Light Treads Utility Seismic Detector Device Seismic Detector Storage Small Storage Unit Weapon Medium Laser Energy Gun Medium Laser Build | -11 -10 -10 -9 ------- Run | Yrd Mat Min Mat Slots Evolved 2 | . . . 2 Power . | . . . . Propulsion . | . . . . Utility 2 | . . . 2 Weapon . | . . . . Parts Attached 13 | 8 3 2 . Power 3 | 1 1 1 . Engine 3 | 1 1 1 . Core . | . . . . Reactor . | . . . . Propulsion 4 | 2 2 . . Treads 4 | 2 2 . . Leg . | . . . . Wheel . | . . . . Hover . | . . . . Flight . | . . . . Utility 3 | 2 . 1 . Device 1 | 1 . . . Storage 2 | 1 . 1 . Processor . | . . . . Hackware . | . . . . Protection . | . . . . Artifact . | . . . . Weapon 3 | 3 . . . Energy Gun 3 | 3 . . . Energy Cannon . | . . . . Ballistic Gun . | . . . . Ballistic Cannon . | . . . . Launcher . | . . . . Special Weapon . | . . . . Impact Weapon . | . . . . Slashing Weapon . | . . . . Piercing Weapon . | . . . . Special Melee Weapon . | . . . . Unidentified Prototypes . | . . . . Parts Lost 2 | . . 2 . Power 1 | . . 1 . Propulsion . | . . . . Utility . | . . . . Weapon 1 | . . 1 . Highest Loss Streak 1 | . . 1 . To Critical Strikes . | . . . . Average Slot Usage (%) 93 | . 100 94 66 Engine 13 | . 14 13 11 Treads 27 | . 28 28 22 Device 13 | . 14 14 11 Storage 13 | . 14 14 11 Energy Gun 22 | . 28 22 11 Peak Build Rating 8 | 7 8 8 6 Average Rating 6 | 6 7 7 6 On Entrance 5 | . 7 8 6 Naked Turns . | . . . . Heaviest Build 16 | 13 15 16 16 Greatest Support 40 | 40 40 40 40 Greatest Overweight (x) . | . . . . Average Overweight (x) . | . . . . Largest Inventory Capacity 10 | 8 8 10 10 Average Capacity 8 | 7 8 8 10 Most Carried 8 | 5 8 8 7 Average Carried 6 | 2 7 7 7 Final Capacity 10 | 8 8 10 10 Final Carried 8 | 5 8 7 7 Class Distribution -------------------- 100% | Mutant Dominant Class ---------------- Mutant | -10/Materials Mutant | -10/Mines Mutant | -9/Materials Resources | -11 -10 -10 -9 ----------- Run | Yrd Mat Min Mat Matter Collected 354 | 280 30 44 . Remotely . | . . . . Salvage Created 729 | 257 193 279 . Parts 60 | 24 10 26 . Haulers Intercepted . | . . . . Recyclers Shooed 2 | 1 1 . . Parts Field Recycled . | . . . . Retrieved Matter . | . . . . Parts Self-Destructed . | . . . . Prevented . | . . . . Kills | -11 -10 -10 -9 ------- Run | Yrd Mat Min Mat Combat Hostiles Destroyed 14 | . 4 10 . Guns 12 | . 3 9 . Classes Destroyed 7 | 3 3 1 . Worker 5 | 2 . 3 . Tunneler 9 | 8 . 1 . Recycler 1 | 1 . . . Operator 1 | . 1 . . Watcher 1 | . 1 . . Swarmer 6 | . . 6 . Grunt 8 | . 4 4 . Best Kill Streak 3 | 2 2 3 . Combat Bots Only 3 | . 2 3 . Max Kills in Single Turn 1 | 1 1 1 . Gunslinging . | . . . . Exploded . | . . . . Melee . | . . . . Uniques/NPCs Destroyed . | . . . . Combat | -11 -10 -10 -9 -------- Run | Yrd Mat Min Mat Hostile Shots Fired 63 | . 19 42 2 Missed 21 | . 6 15 . Damage Taken 542 | . 166 347 29 Core 75 | . 51 24 . Absorbed by Shields . | . . . . Core Remaining (%) 85 | 100 . 70 . Volleys Fired 72 | 23 21 25 3 Largest 2 | 2 2 2 1 Hottest 100 | 100 100 100 50 Shots Fired 142 | 46 42 51 3 Gun 142 | 46 42 51 3 Cannon . | . . . . Launcher . | . . . . Special . | . . . . Kinetic . | . . . . Thermal 142 | 46 42 51 3 Explosive . | . . . . Electromagnetic . | . . . . Robot Hit Streak 15 | 7 15 9 2 Robot Miss Streak 4 | 2 3 4 1 Penetration Max . | . . . . Secondary Targets . | . . . . Shots Hit Robots 93 | 29 29 33 2 Core Hits 42 | 11 12 19 . Critical Kills . | . . . . Critical Parts Destroyed . | . . . . Critical Strikes 9 | 5 1 3 . Burn 9 | 5 1 3 . Melee Attacks . | . . . . Impact . | . . . . Slashing . | . . . . Piercing . | . . . . Sneak Attacks . | . . . . Combat Hostiles . | . . . . Follow-up Attacks . | . . . . Damage Inflicted 1225 | 379 373 447 26 Guns 1176 | 379 360 411 26 Cannons . | . . . . Explosions . | . . . . Melee . | . . . . Ramming 49 | . 13 36 . Kinetic . | . . . . Thermal 1176 | 379 360 411 26 Explosive . | . . . . Electromagnetic . | . . . . Impact . | . . . . Slashing . | . . . . Piercing . | . . . . Highest Corruption 2 | . 2 2 . Average Corruption 2 | . 2 2 . Corruption Purged . | . . . . Corruption Blocked . | . . . . Effects 17 | . 2 15 . Message Errors 2 | . . 2 . Matter Fused 4 | . . 4 . Heat Flow Errors 2 | . 1 1 . Energy Discharges 1 | . . 1 . Parts Fused 1 | . . 1 . Data Loss (minor) 6 | . 1 5 . Misfires 1 | . . 1 . Overload Shots . | . . . . Overflow Damage 1 | . . 1 . Projectiles . | . . . . Explosions . | . . . . Melee 1 | . . 1 . Knockbacks . | . . . . Impact . | . . . . Kinetic . | . . . . Secondary . | . . . . Self-Inflicted Damage . | . . . . Shots . | . . . . Rammed 15 | . 3 12 . Targets Rammed 18 | . 3 15 . Kicked . | . . . . Crushed 3 | . . 3 . Highest Temperature 323 | 161 323 286 12 Average Temperature 87 | 53 104 105 6 Received Heat Transfer 255 | . 99 129 27 Effects 4 | . 1 3 . Energy Bleed 1 | . 1 . . Interference 3 | . . 3 . Siege Activations . | . . . . Robots Corrupted 1 | . . 1 . Combat Hostiles 1 | . . 1 . Parts Fried . | . . . . Impact Corruptions 1 | . . 1 . Robots Melted 2 | 1 1 . . Combat Hostiles 1 | . 1 . . Parts Melted 6 | . 2 4 . Heat Transferred 4144 | 1480 1147 1443 74 Parts Sabotaged . | . . . . Parts Stolen . | . . . . Parts Stripped . | . . . . Power Chain Reactions . | . . . . Alert | -11 -10 -10 -9 ------- Run | Yrd Mat Min Mat Peak Influence 178 | 45 178 165 20 Initial 6 | . 6 . . Average 47 | 17 108 45 . Maximum Alert Level . | . . . . Low Security (%) 100 | 100 100 100 100 Level 1 . | . . . . Level 2 . | . . . . Level 3 . | . . . . Level 4 . | . . . . Level 5 . | . . . . High Security . | . . . . Max Security . | . . . . Squads Dispatched 1 | . 1 . . Investigation . | . . . . Extermination . | . . . . Reinforcement 1 | . 1 . . Assault . | . . . . Garrison . | . . . . Intercept . | . . . . Searches Triggered . | . . . . Construction Impeded . | . . . . Haulers Reinforced . | . . . . Active Scanning Responses . | . . . . Cargo Convoy Interrupts . | . . . . Stealth | -11 -10 -10 -9 --------- Run | Yrd Mat Min Mat Distress Signals 1 | . 1 . . Communications Jammed . | . . . . Distress Signals . | . . . . Times Spotted 22 | . 9 10 3 Peak Tracking Total 4 | . 3 3 4 Tactical Retreats 1 | . 1 . . Traps | -11 -10 -10 -9 ------- Run | Yrd Mat Min Mat Traps Triggered 1 | . 1 . . Indirectly . | . . . . Trap Hack Attempts . | . . . . Triggered . | . . . . Disarmed . | . . . . Reprogrammed . | . . . . Reused . | . . . . Traps Extracted . | . . . . Installed . | . . . . Triggered . | . . . . Machines | -11 -10 -10 -9 ---------- Run | Yrd Mat Min Mat Machines Disabled . | . . . . Max in Single Turn . | . . . . Machines Repaired . | . . . . Machines Dismantled . | . . . . Machines Sabotaged . | . . . . Overloaded Fab Kills . | . . . . Hacking | -11 -10 -10 -9 --------- Run | Yrd Mat Min Mat Machines Accessed 1 | . . 1 . Terminals . | . . . . Fabricators . | . . . . Repair Stations . | . . . . Recycling Units . | . . . . Scanalyzers . | . . . . Garrison Access . | . . . . Total Hacks 1 | . . 1 . Successful 1 | . . 1 . Failed . | . . . . Catastrophic . | . . . . Database Lockouts . | . . . . Manual . | . . . . Terminals . | . . . . Fabricators . | . . . . Repair Stations . | . . . . Recycling Units . | . . . . Scanalyzers . | . . . . Garrison Access . | . . . . Terminal Hacks 1 | . . 1 . Open Door 1 | . . 1 . Fabricator Hacks . | . . . . Repair Station Hacks . | . . . . Recycling Unit Hacks . | . . . . Scanalyzer . | . . . . Garrison Access Hacks . | . . . . Unauthorized Hacks . | . . . . Terminals . | . . . . Fabricators . | . . . . Repair Stations . | . . . . Recycling Units . | . . . . Scanalyzers . | . . . . Garrison Access . | . . . . Data Cores Recovered 1 | . . . 1 Used . | . . . . Hacking Detections . | . . . . Full Trace Events . | . . . . Feedback Events . | . . . . Feedback Blocked . | . . . . Robot Schematics Acquired . | . . . . Robots Built . | . . . . Authchips . | . . . . Time . | . . . . Total Robot Build Rating . | . . . . Part Schematics Acquired . | . . . . Parts Built . | . . . . Authchips . | . . . . Time . | . . . . Total Part Build Rating . | . . . . Parts Repaired . | . . . . Time . | . . . . Parts Recycled . | . . . . Recycled Matter . | . . . . Retrieved Matter . | . . . . Retrieved Components . | . . . . Parts Scanalyzed . | . . . . Part Schematics Acquired . | . . . . Parts Damaged . | . . . . Bothacking | -11 -10 -10 -9 ------------ Run | Yrd Mat Min Mat Used RIF Installer . | . . . . Robots Hacked . | . . . . Non-combat . | . . . . Combat . | . . . . Robot Hacks Applied . | . . . . Relay Couplers Released . | . . . . Fabnet Peak Effective % . | . . . . Robots Rewired . | . . . . Allies Hacked . | . . . . Hacks Repelled . | . . . . Allies | -11 -10 -10 -9 -------- Run | Yrd Mat Min Mat Total Allies 3 | . . 3 . Largest Group 3 | . . 3 3 Highest-Rated Group 40 | . . 40 40 Highest-Rated Ally 16 | . . 16 16 Total Orders . | . . . . Ally Attacks 8 | . . . 8 Total Damage 68 | . . . 68 Kills 1 | . . . 1 Allies Corrupted . | . . . . Allies Melted . | . . . . Intel | -11 -10 -10 -9 ------- Run | Yrd Mat Min Mat Robot Analysis Total . | . . . . Derelict Logs Recovered 2 | . . 2 . Drone Launches . | . . . . Drone Recoveries . | . . . . Exploration | -11 -10 -10 -9 ------------- Run | Yrd Mat Min Mat Turns Passed 2311 | 521 405 1252 133 Spaces Moved 1251 | 278 183 711 79 Core 12 | 12 . . . Treads 1239 | 266 183 711 79 Legs . | . . . . Wheels . | . . . . Hover . | . . . . Flight . | . . . . Fastest Speed 50 | 50 160 160 160 Average Speed 158 | 155 160 160 160 Slowest Speed 160 | 160 160 160 160 Overloaded Moves . | . . . . Propulsion Burnouts . | . . . . Robots Hopped . | . . . . Cave-ins Triggered . | . . . . Exploration Rate (%) 38 | 12 35 94 11 Regions Visited 3 Branch Regions 1 Pre-discovered Areas . | . . . . Known Exits Taken . | . . . . Unknown Exits Taken 3 | 1 1 1 . Scrap Searched 2 | . . 2 . Spaces Dug . | . . . . Terrain Destroyed . | . . . . Melee . | . . . . Projectile . | . . . . AOE . | . . . . Terrain Rammed . | . . . . Walls Destroyed . | . . . . Machines Disabled . | . . . . Actions | -11 -10 -10 -9 --------- Run | Yrd Mat Min Mat Total 1418 | 318 251 767 82 Wait 58 | 4 40 14 . Move 1248 | 277 182 710 79 Hop . | . . . . Pick Up 7 | 6 1 . . Fast Attach 6 | 6 . . . Attach 2 | 1 . 1 . Detach . | . . . . Swap 5 | 1 3 1 . Drop 2 | . 1 1 . Fire 72 | 23 21 25 3 Melee . | . . . . Ram . | . . . . Kick . | . . . . Crush 18 | . 3 15 . Escape Stasis . | . . . . Rewire . | . . . . Trap . | . . . . Miscellaneous . | . . . . Route ------- -11/Scrapyard -10/Materials -10/Mines -9/Materials (discovered 1 exit: Sto) History --------- Turn | Location | Event 10 | -11/Scrapyard | Discovered new exit (range 15) 522 | -11/Scrapyard | Entered Materials 523 | -10/Materials | Build established: Mutant 908 | -10/Materials | Discovered new exit (range 9) 927 | -10/Materials | Entered Mines 1370 | -10/Mines | Learned Materials garrison access intel 1677 | -10/Mines | Learned location of 1 exit from Materials 1690 | -10/Mines | Met a Derelict who couldn't figure out how to use a Trap Extractor 1768 | -10/Mines | Assisted by bots powering up and referring to "LRC-V3" 2171 | -10/Mines | Discovered new exit (range 4) 2179 | -10/Mines | Entered Materials 2179 | -9/Materials | Accompanied by 3 allies 2179 | -9/Materials | Evolved 2 slots: Utility x2 2180 | -9/Materials | Identified exit to Storage 2312 | -9/Materials | Self-destructed Last Messages --------------- 02112_ A2>M KKME/Q5G>FPYMD97FLFHL0N83U 02127_ Acquired 6 matter. 02150_ System corrupted: Component data lost. 02171_ EXIT=FOUND PARAMETERS=UTILITY+2 LOCATION=UNKNOWN GOAL=ESCAPE Loading 1 Materials exit... 02181_ 9X-T8N(g): "What?! This place again? I'm sticking with you." 02249_ U-05 Engineer works on Hadron Collector. 02253_ Connecting with Terminal... 02253_ Current location identified: Materials 02254_ U-05 Engineer works on Hadron Collector. 02259_ U-05 Engineer completes Hadron Collector. 02266_ Hadron Collector comes online. 02294_ Destroyed Lgt. Ion Engine. 02295_ O-16 Technician destroyed. 02297_ Acquired data core, extracted dynamic key. 02297_ Decrypted 1 local trap positions from data. 02309_ Critical hit (Burn: +37). Map ----- +----------------------------------------------------+ | ?????????????????????????????????????????????????? | | ?????????????????????????????????????????????????? | | ?????????????????????????????????????????????????? | | ?????????????????????????????????????????????????? | | ?????????????????????????????????????????????????? | | ?????????????????????????????????????????????????? | | ?????????????????????????????????????????????????? | | ?????????????????????????????????????????????????? | | ?????????????????????????????????????????????????? | | ?????????????????????????????????????????????????? | | ??????????????????????? ?????????????????????????? | | ??????????????????????# ?????????????????????????? | | ?????????????????????## ###??????????????????????? | | ?????????????????????# ??????????????????????? | | ?????????????????????+ ??????????????????????? | | ?????????????????????# kY ??????????????????????? | | ?????????????????????? ??????????????????????? | | ?????????????????????? ??????????????????????? | | ????????????>?????????# #??????????????????????? | | ??????????????????????# #??????????????????????? | | ??????????????????????# #??????????????????????? | | ??????????????????????# #?????#######??????????? | | ??????????????????????# ####### #??????????? | | ??????????????????????# % #??????????? | | ??????????????????????# g g #??????????? | | ??????????????????????# @ g g #??????????? | | ??????????????????????###/####### #??????????? | | ????????????????????????^ ?????## ##??????????? | | ???????????????????????? ??????# #???????????? | | ??????????????????????? ?????# #???????????? | | ??????????????????????? """ ?????# #???????????? | | ?????????????????????? """ #????# #???????????? | | ?????????????????????? """ #????# #???????????? | | ????????????????????? #????# #???????????? | | ????????????????????? ###### #???????????? | | ????????????????????####???###"""# #???????????? | | ????????????????????????????##"T"# #???????????? | | ???????????????????????????## #???????????? | | ???????????????????????????#" +???????????? | | ???????????????????????????#T #???????????? | | ???????????????????????????#" #???????????? | | ???????????????????????????## """ #???????????? | | ???????????????????????????#T """ #???????????? | | ???????????????????????????## """ #???????????? | | ??????????????????########### """ #???????????? | | ??????????????????# # !###?????????? | | ??????????????????# # #?????????? | | ??????????????????# # #?????????? | | ??????????????????# """ """ + +?????????? | | ??????????????????# """ """ # #?????????? | +----------------------------------------------------+ Best States ------------- Heat Dissipation 28 Energy Generation 10 Energy Capacity 250 Matter Stores 300 Matter Capacity 300 Sight Range 16 Terrain Scan Density 10 Evasion (%) 50 Recoil Reduction 2 Item Schematics ----------------- None Robot Schematics ------------------ None Fabricated ------------ Nothing Alien Tech Used ----------------- None Achievements -------------- None Challenges ------------ None Game ------ Seed ZhirovGatlingTube Manual? 0 Play Time 00:10:54 Cumulative 14.6 hours Start 2025.01.07 @ 21:09:02 End 2025.01.07 @ 21:20:21 Sessions 3 Manual Loads 0 Difficulty Rogue Special Mode None Game No. 41 Rogue 41 Adventurer 0 Explorer 0 Win Type - Total 0 Types 0/0/0/0/0/0/0/0/0 Lore% 5 Gallery% 23 Achievement% 19 Wizard Run 0 Options --------- Layout 0 ASCII 0 Keyboard 0 Movement Numpad Keybinds 0 Fullscreen 2 Font 18/Terminus Map View 76x50 Zoom Use 0% Tactical HUD 1 Map Filters NONE Filters NONE Steam 1 RUN: 0d4f225b-e93b-4e7e-8dc2-0fc8f85abf43